fUST/lending_fUST_20240801
["ID","MTS","AMOUNT","RATE_DAILY","PERIOD"]
[333805780,1722521446431,-500.0,0.00015616,2]
[333805781,1722521446441,-500.0,0.00015616,2]
[333805782,1722521446451,-500.0,0.00015616,2]
[333805783,1722521446460,-533.53,0.00015616,2]
[333805784,1722521446470,-500.0,0.00015616,2]
[333805785,1722521446480,-500.0,0.00015616,2]
[333805786,1722521446490,-500.0,0.00015616,2]
[333805787,1722521446504,-612.83289627,0.00015616,2]
[333805788,1722521446514,-1006.13,0.00015616,2]
[333805789,1722521446523,-500.0,0.00015616,2]
[333805790,1722521446533,-1575.83,0.00015616,2]
[333805791,1722521446543,-500.0,0.00015616,2]
[333805792,1722521446553,-505.98,0.0001568,2]
[333805793,1722521446562,-24184.9565183,0.00015707,2]
[333805794,1722521446572,-14443.46917305,0.00015707,2]
[333805795,1722521446582,-10665.35414646,0.00015707,2]
[333805796,1722521446591,-33308.34558419,0.00015707,2]
[333805797,1722521446600,-5563.61259105,0.00015707,2]
[333805798,1722521446610,-1426.28107397,0.00015707,2]
[333805799,1722521446620,-1204.5111759,0.00015707,2]
[333805800,1722521446629,-151.0,0.00015707,2]
[333805801,1722521446640,-151.0,0.00015707,2]
[333805802,1722521446651,-286.574834,0.00015707,2]
[333805803,1722521446661,-151.0,0.00015707,2]
[333805804,1722521446671,-160.335764,0.00015707,2]
[333805805,1722521446680,-160.335764,0.00015707,2]
[333805806,1722521446690,-151.0,0.00015707,2]
[333805807,1722521446699,-151.0,0.00015707,2]
[333805808,1722521446709,-151.0,0.00015707,2]
[333805809,1722521446719,-151.0,0.00015707,2]
[333805810,1722521446729,-151.0,0.00015707,2]
[333805811,1722521446739,-247.32097,0.00015707,2]
[333805812,1722521446753,-80629.62317612,0.00015708,2]
[333805813,1722521446764,-7469.83456081,0.00015708,2]
[333805814,1722521446779,-1700.95977134,0.00015708,2]
[333805815,1722521446798,-1709.91970665,0.00015708,2]
[333805816,1722521446811,-4076.98084852,0.00015708,2]
[333805817,1722521446821,-6879.4060919,0.00015708,2]
[333805818,1722521446830,-13883.81137009,0.00015708,2]
[333805819,1722521446840,-4015.93764651,0.00015708,2]
[333805820,1722521446850,-6091.10585799,0.00015708,2]
[333805821,1722521446860,-4776.85962962,0.00015708,2]
[333805822,1722521446869,-4371.68656557,0.00015708,3]
[333805823,1722521446879,-7388.89656866,0.00015708,2]
[333805824,1722521446888,-4968.02263054,0.00015708,2]
[333805825,1722521446898,-1500.0,0.00015708,2]
[333805826,1722521446907,-146257.55959276,0.00015708,2]
[333805827,1722521446916,-5676.18910357,0.00015708,7]
[333805828,1722521446927,-151.0,0.00015708,2]
[333805829,1722521446937,-151.0,0.00015708,2]
[333805830,1722521446947,-151.0,0.00015708,2]
[333805831,1722521446956,-151.0,0.00015708,2]
[333805832,1722521446965,-151.0,0.00015708,2]
[333805833,1722521446974,-151.0,0.00015708,2]
[333805834,1722521446984,-160.335764,0.00015708,2]
[333805835,1722521446994,-160.335764,0.00015708,2]
[333805836,1722521447004,-160.335764,0.00015708,2]
[333805837,1722521447013,-160.335764,0.00015708,2]
[333805838,1722521447023,-221.682818,0.00015708,2]
[333805839,1722521447032,-151.0,0.00015708,2]
[333805841,1722521447041,-174.273276,0.00015708,2]
[333805843,1722521447050,-267.128878,0.00015708,2]
[333805845,1722521447059,-62853.72626278,0.00015709,2]
[333805846,1722521447068,-71706.91103452,0.00015709,2]
[333805847,1722521447079,-65036.09519592,0.00015709,2]
[333805848,1722521447088,-151.0,0.00015709,2]
[333805850,1722521447098,-151.0,0.00015709,2]
[333805851,1722521447108,-151.0,0.00015709,2]
[333805852,1722521447118,-160.335764,0.00015709,2]
[333805853,1722521447128,-160.335764,0.00015709,2]
[333805854,1722521447137,-2385.61933511,0.00015709,2]
[333805855,1722521447146,-170.1171544,0.00015746,2]
[333805857,1722521447157,-294.1746601,0.00015805,2]
[333805858,1722521447166,-294.1746601,0.00015805,2]
[333805859,1722521447176,-206.8816348,0.00015805,2]
[333805860,1722521447186,-294.1746601,0.00015805,2]
[333805861,1722521447196,-294.1746601,0.00015805,2]
[333805862,1722521447206,-294.1746601,0.00015805,2]
[333805863,1722521447216,-294.1746601,0.00015805,2]
[333805864,1722521447226,-294.1746601,0.00015805,2]
[333805865,1722521447235,-588.3192129,0.00015805,2]
[333805866,1722521447246,-294.0843382,0.00015805,2]
[333805867,1722521447255,-306.1405011,0.00015857,2]
[333805868,1722521447264,-2738.47,0.0001589,2]
[333805869,1722521447274,-457.53506148,0.0001589,2]
[333805870,1722521447307,-500.0,0.0001589,2]
[333805871,1722521447317,-500.0,0.0001589,2]
[333805872,1722521447326,-500.0,0.0001589,2]
[333805874,1722521447335,-500.0,0.0001589,2]
[333805876,1722521447345,-500.0,0.0001589,2]
[333805878,1722521447354,-500.0,0.0001589,2]
[333805880,1722521447363,-500.0,0.0001589,2]
[333805881,1722521447373,-500.0,0.0001589,2]
[333805883,1722521447382,-510.69,0.0001589,2]
[333805884,1722521447392,-583.26,0.0001589,2]
[333805885,1722521447401,-500.0,0.0001589,2]
[333805886,1722521447411,-500.0,0.0001589,2]
[333805887,1722521447420,-500.0,0.0001589,2]
[333805888,1722521447429,-2317.06,0.0001589,2]
[333805889,1722521447438,-1062.46,0.0001589,2]
[333805890,1722521447447,-500.0,0.0001589,2]
[333805891,1722521447456,-1544.57,0.0001589,2]
[333805892,1722521447466,-500.0,0.0001589,2]
[333805893,1722521447475,-547.52,0.0001589,2]
[333805894,1722521447484,-500.0,0.0001589,2]
[333805895,1722521447496,-500.0,0.0001589,2]
[333805896,1722521447505,-500.0,0.0001589,2]
[333805897,1722521447513,-500.0,0.0001589,2]
[333805898,1722521447523,-747.22,0.0001589,2]
[333805899,1722521447532,-2056.17,0.0001589,2]
[333805900,1722521447541,-500.0,0.0001589,2]
[333805901,1722521447550,-500.0,0.0001589,2]
[333805902,1722521447559,-542.37,0.0001589,2]
[333805903,1722521447569,-500.0,0.0001589,2]
[333805904,1722521447578,-617.65,0.0001589,2]
[333805905,1722521447587,-500.0,0.0001589,2]
[333805906,1722521447596,-697.33,0.0001589,2]
[333805907,1722521447605,-578.84,0.0001589,2]
[333805908,1722521447615,-500.0,0.0001589,2]
[333805909,1722521447624,-160.335764,0.0001589,2]
[333805910,1722521447633,-160.335758,0.0001589,2]
[333805911,1722521447642,-2041.12,0.0001589,2]
[333805912,1722521447651,-500.0,0.0001589,2]
[333805913,1722521447660,-1317.35,0.0001589,2]
[333805914,1722521447669,-735.14,0.0001589,2]
[333805915,1722521447678,-500.0,0.0001589,2]
[333805916,1722521447687,-500.0,0.0001589,2]
[333805917,1722521447696,-500.0,0.0001589,2]
[333805918,1722521447705,-521.09,0.0001589,2]
[333805919,1722521447714,-500.0,0.0001589,2]
[333805920,1722521447723,-500.0,0.0001589,2]
[333805921,1722521447732,-500.0,0.0001589,2]
[333805922,1722521447741,-500.0,0.0001589,2]
[333805923,1722521447750,-533.53,0.0001589,2]
[333805924,1722521447759,-500.0,0.0001589,2]
[333805925,1722521447769,-500.0,0.0001589,2]
[333805926,1722521447782,-500.0,0.0001589,2]
[333805927,1722521447790,-1006.13,0.0001589,2]
[333805928,1722521447799,-500.0,0.0001589,2]
[333805929,1722521447809,-1575.83,0.0001589,2]
[333805930,1722521447818,-500.0,0.0001589,2]
[333805931,1722521447828,-151.0,0.00015897,2]
[333805932,1722521447837,-151.0,0.00015897,2]
[333805933,1722521447846,-151.0,0.00015986,2]
[333805934,1722521447857,-4000.0,0.00016,2]
[333805935,1722521447867,-4000.0,0.00016,2]
[333805936,1722521447876,-4000.0,0.00016,2]
[333805937,1722521447886,-4000.0,0.00016,2]
[333805938,1722521447895,-3000.0,0.00016,2]
[333805939,1722521447904,-1002.411455,0.00016,2]
[333805940,1722521447913,-3000.0,0.0001601,2]
[333805941,1722521447923,-3000.0,0.0001602,2]
[333805942,1722521447932,-1824.9643235,0.0001603,2]
[333805943,1722521448218,-500.0,0.00013698,2]
[333805944,1722521448227,-818.84503557,0.0001603,2]
[333805945,1722521448240,-356.19064093,0.0001603,2]
[333805946,1722521448250,-1025.84496061,0.00016038,2]
[333805947,1722521448260,-3000.0,0.0001604,2]
[333805948,1722521448270,-632.0,0.00016043,2]
[333805949,1722521448279,-3000.0,0.0001605,2]
[333805950,1722521448290,-3000.0,0.0001606,2]
[333805951,1722521448300,-3000.0,0.0001607,2]
[333805952,1722521448310,-3000.0,0.0001608,2]
[333805953,1722521448320,-3000.0,0.0001609,2]
[333805954,1722521448330,-3000.0,0.000161,2]
[333805955,1722521448340,-3000.0,0.0001611,2]
[333805956,1722521448349,-3000.0,0.0001612,2]
[333805957,1722521448359,-3000.0,0.0001613,2]
[333805958,1722521448369,-3000.0,0.0001614,2]
[333805959,1722521448378,-3000.0,0.0001615,2]
[333805960,1722521448388,-3000.0,0.0001616,2]
[333805961,1722521448398,-2738.47,0.00016164,2]
[333805962,1722521448407,-500.0,0.00016164,2]
[333805963,1722521448417,-500.0,0.00016164,2]
[333805964,1722521448428,-500.0,0.00016164,2]
[333805965,1722521448437,-500.0,0.00016164,2]
[333805966,1722521448447,-500.0,0.00016164,2]
[333805967,1722521448457,-500.0,0.00016164,2]
[333805968,1722521448467,-500.0,0.00016164,2]
[333805969,1722521448477,-500.0,0.00016164,2]
[333805970,1722521448486,-510.69,0.00016164,2]
[333805971,1722521448497,-583.26,0.00016164,2]
[333805972,1722521448507,-500.0,0.00016164,2]
[333805973,1722521448517,-500.0,0.00016164,2]
[333805974,1722521448527,-500.0,0.00016164,2]
[333805975,1722521448537,-2317.06,0.00016164,2]
[333805976,1722521448547,-1062.46,0.00016164,2]
[333805977,1722521448556,-500.0,0.00016164,2]
[333805978,1722521448566,-1544.57,0.00016164,2]
[333805979,1722521448576,-500.0,0.00016164,2]
[333805980,1722521448585,-547.52,0.00016164,2]
[333805981,1722521448595,-500.0,0.00016164,2]
[333805982,1722521448605,-500.0,0.00016164,2]
[333805983,1722521448614,-500.0,0.00016164,2]
[333805984,1722521448624,-500.0,0.00016164,2]
[333805985,1722521448633,-747.22,0.00016164,2]
[333805986,1722521448642,-2056.17,0.00016164,2]
[333805987,1722521448652,-500.0,0.00016164,2]
[333805988,1722521448662,-500.0,0.00016164,2]
[333805989,1722521448671,-542.37,0.00016164,2]
[333805990,1722521448680,-500.0,0.00016164,2]
[333805991,1722521448690,-617.65,0.00016164,2]
[333805992,1722521448702,-500.0,0.00016164,2]
[333805993,1722521448711,-697.33,0.00016164,2]
[333805994,1722521448721,-578.84,0.00016164,2]
[333805995,1722521448731,-500.0,0.00016164,2]
[333805996,1722521448741,-2041.12,0.00016164,2]
[333805997,1722521448751,-500.0,0.00016164,2]
[333805998,1722521448760,-1317.35,0.00016164,2]
[333805999,1722521448773,-735.14,0.00016164,2]
[333806000,1722521448784,-500.0,0.00016164,2]
[333806001,1722521448794,-500.0,0.00016164,2]
[333806002,1722521448803,-500.0,0.00016164,2]
[333806003,1722521448814,-521.09,0.00016164,2]
[333806004,1722521448824,-500.0,0.00016164,2]
[333806005,1722521448834,-500.0,0.00016164,2]
[333806006,1722521448844,-500.0,0.00016164,2]
[333806007,1722521448857,-500.0,0.00016164,2]
[333806008,1722521448867,-533.53,0.00016164,2]
[333806009,1722521448876,-500.0,0.00016164,2]
[333806010,1722521448886,-500.0,0.00016164,2]
[333806011,1722521448896,-500.0,0.00016164,2]
[333806012,1722521448906,-1006.13,0.00016164,2]
[333806013,1722521448915,-500.0,0.00016164,2]
[333806014,1722521448926,-1575.83,0.00016164,2]
[333806015,1722521448936,-500.0,0.00016164,2]
[333806016,1722521448946,-3000.0,0.0001617,2]
[333806017,1722521448955,-151.0,0.0001618,2]
[333806018,1722521448964,-3000.0,0.0001618,2]
[333806019,1722521448975,-151.0,0.0001618,2]
[333806020,1722521448985,-151.0,0.0001618,2]
[333806021,1722521448995,-3000.0,0.0001619,2]
[333806022,1722521449005,-3000.0,0.000162,2]
[333806023,1722521449014,-3000.0,0.0001621,2]
[333806024,1722521449024,-3000.0,0.0001622,2]
[333806025,1722521449033,-3000.0,0.0001623,2]
[333806026,1722521449043,-3000.0,0.0001624,2]
[333806027,1722521449053,-3000.0,0.0001625,2]
[333806028,1722521449062,-3000.0,0.0001626,2]
[333806029,1722521449072,-3000.0,0.0001627,2]
[333806030,1722521449081,-3000.0,0.0001628,2]
[333806031,1722521449091,-3000.0,0.0001629,2]
[333806032,1722521449101,-3000.0,0.000163,2]
[333806033,1722521449110,-3000.0,0.0001631,2]
[333806034,1722521449119,-620.15167601,0.00016315,2]
[333806035,1722521449129,-3000.0,0.0001632,2]
[333806036,1722521449140,-3000.0,0.0001633,2]
[333806037,1722521449149,-3000.0,0.0001634,2]
[333806038,1722521449159,-3000.0,0.0001635,2]
[333806039,1722521449169,-3000.0,0.0001636,2]
[333806040,1722521449178,-3000.0,0.0001637,2]
[333806041,1722521449188,-3000.0,0.0001638,2]
[333806042,1722521449198,-3000.0,0.0001639,2]
[333806043,1722521449208,-3000.0,0.000164,2]
[333806044,1722521449219,-3000.0,0.0001641,2]
[333806045,1722521449229,-3000.0,0.0001642,2]
[333806046,1722521449240,-3000.0,0.0001643,2]
[333806047,1722521449251,-2738.47,0.00016438,2]
[333806048,1722521449261,-202.84891152,0.00016438,2]
[333806049,1722521449271,-500.0,0.00016438,2]
[333806050,1722521449281,-500.0,0.00016438,2]
[333806051,1722521449292,-500.0,0.00016438,2]
[333806052,1722521449302,-500.0,0.00016438,2]
[333806053,1722521449311,-333.62,0.00016438,2]
[333806054,1722521449322,-333.62,0.00016438,2]
[333806055,1722521449332,-333.62,0.00016438,2]
[333806056,1722521449341,-333.62,0.00016438,2]
[333806057,1722521449351,-333.62,0.00016438,2]
[333806058,1722521449361,-333.62,0.00016438,2]
[333806059,1722521449370,-333.62,0.00016438,2]
[333806060,1722521449381,-333.62,0.00016438,2]
[333806061,1722521449391,-333.62,0.00016438,2]
[333806062,1722521449402,-333.62,0.00016438,2]
[333806063,1722521449412,-333.62,0.00016438,2]
[333806064,1722521449422,-500.0,0.00016438,2]
[333806065,1722521449432,-500.0,0.00016438,2]
[333806066,1722521449442,-500.0,0.00016438,2]
[333806067,1722521449451,-510.69,0.00016438,2]
[333806068,1722521449461,-583.26,0.00016438,2]
[333806069,1722521449471,-500.0,0.00016438,2]
[333806070,1722521449480,-500.0,0.00016438,2]
[333806071,1722521449490,-387.4,0.00016438,2]
[333806072,1722521449500,-500.0,0.00016438,2]
[333806073,1722521449510,-2317.06,0.00016438,2]
[333806074,1722521449520,-1062.46,0.00016438,2]
[333806075,1722521449531,-500.0,0.00016438,2]
[333806076,1722521449540,-1544.57,0.00016438,2]
[333806077,1722521449551,-500.0,0.00016438,2]
[333806078,1722521449560,-547.52,0.00016438,2]
[333806079,1722521449570,-500.0,0.00016438,2]
[333806080,1722521449580,-618.79367166,0.00016438,2]
[333806081,1722521449590,-500.0,0.00016438,2]
[333806082,1722521449685,-500.0,0.00016438,2]
[333806083,1722521449695,-747.22,0.00016438,2]
[333806084,1722521449704,-2056.17,0.00016438,2]
[333806085,1722521449714,-500.0,0.00016438,2]
[333806086,1722521449724,-500.0,0.00016438,2]
[333806087,1722521449733,-542.37,0.00016438,2]
[333806088,1722521449743,-500.0,0.00016438,2]
[333806089,1722521449753,-617.65,0.00016438,2]
[333806090,1722521449764,-500.0,0.00016438,2]
[333806091,1722521449777,-697.33,0.00016438,2]
[333806092,1722521449788,-578.84,0.00016438,2]
[333806093,1722521449797,-500.0,0.00016438,2]
[333806094,1722521449806,-2041.12,0.00016438,2]
[333806095,1722521449817,-500.0,0.00016438,2]
[333806096,1722521449827,-1317.35,0.00016438,2]
[333806097,1722521449837,-735.14,0.00016438,2]
[333806098,1722521449846,-500.0,0.00016438,2]
[333806099,1722521449856,-500.0,0.00016438,2]
[333806100,1722521449866,-500.0,0.00016438,2]
[333806101,1722521449875,-521.09,0.00016438,2]
[333806102,1722521449884,-500.0,0.00016438,2]
[333806103,1722521449893,-500.0,0.00016438,2]
[333806104,1722521449903,-500.0,0.00016438,2]
[333806105,1722521449912,-457.62914452,0.00016438,2]
[333806106,1722521449922,-533.53,0.00016438,2]
[333806107,1722521449931,-500.0,0.00016438,2]
[333806108,1722521449940,-500.0,0.00016438,2]
[333806109,1722521449950,-500.0,0.00016438,2]
[333806110,1722521449959,-500.0,0.00016438,2]
[333806111,1722521449969,-1006.13,0.00016438,2]
[333806112,1722521449978,-1575.83,0.00016438,2]
[333806113,1722521449988,-500.0,0.00016438,2]
[333806114,1722521449997,-1000.0,0.00016438,2]
[333806115,1722521450007,-1000.0,0.00016438,2]
[333806116,1722521450016,-1000.0,0.00016438,2]
[333806117,1722521450025,-1000.0,0.00016438,2]
[333806118,1722521450034,-1112.0,0.00016438,2]
[333806119,1722521450043,-3000.0,0.0001644,2]
[333806120,1722521450053,-3000.0,0.0001645,2]
[333806121,1722521450062,-3000.0,0.0001646,2]
[333806122,1722521450071,-3000.0,0.0001647,2]
[333806123,1722521450081,-3000.0,0.0001648,2]
[333806124,1722521450090,-3000.0,0.0001649,2]
[333806125,1722521450100,-3000.0,0.000165,2]
[333806126,1722521450109,-1000.0,0.000165,2]
[333806127,1722521450118,-3000.0,0.0001651,2]
[333806128,1722521450128,-3000.0,0.0001652,2]
[333806129,1722521450137,-3000.0,0.0001653,2]
[333806130,1722521450146,-3000.0,0.0001654,2]
[333806131,1722521450156,-3000.0,0.0001655,2]
[333806132,1722521450165,-3000.0,0.0001656,2]
[333806133,1722521450174,-3000.0,0.0001657,2]
[333806134,1722521450183,-3000.0,0.0001658,2]
[333806135,1722521450192,-3000.0,0.0001659,2]
[333806136,1722521450201,-3000.0,0.000166,2]
[333806137,1722521450211,-813.19736176,0.00016603,2]
[333806138,1722521450221,-3000.0,0.0001661,2]
[333806139,1722521450230,-3000.0,0.0001662,2]
[333806140,1722521450239,-4152.060045,0.0001663,2]
[333806141,1722521450252,-2738.47,0.00016712,2]
[333806142,1722521450262,-500.0,0.00016712,2]
[333806143,1722521450272,-500.0,0.00016712,2]
[333806144,1722521450282,-276.98717969,0.00016712,2]
[333806145,1722521450291,-437.87508448,0.00016712,2]
[333806146,1722521450301,-333.62,0.00016712,2]
[333806147,1722521450310,-500.0,0.00016712,2]
[333806148,1722521450319,-500.0,0.00016712,2]
[333806149,1722521450329,-343.23593164,0.00016712,2]
[333806150,1722521450338,-510.69,0.00016712,2]
[333806151,1722521450348,-583.26,0.00016712,2]
[333806152,1722521450357,-335.83434318,0.00016712,2]
[333806153,1722521450366,-500.0,0.00016712,2]
[333806154,1722521450376,-387.4,0.00016712,2]
[333806155,1722521450385,-500.0,0.00016712,2]
[333806156,1722521450399,-2317.06,0.00016712,2]
[333806157,1722521450408,-1062.46,0.00016712,2]
[333806158,1722521450418,-204.11443555,0.00016712,2]
[333806159,1722521450427,-1544.57,0.00016712,2]
[333806160,1722521450437,-500.0,0.00016712,2]
[333806161,1722521450446,-547.52,0.00016712,2]
[333806162,1722521450455,-500.0,0.00016712,2]
[333806163,1722521450465,-500.0,0.00016712,2]
[333806164,1722521450474,-500.0,0.00016712,2]
[333806165,1722521450484,-747.22,0.00016712,2]
[333806166,1722521450493,-2056.17,0.00016712,2]
[333806167,1722521450502,-500.0,0.00016712,2]
[333806168,1722521450512,-500.0,0.00016712,2]
[333806169,1722521450523,-542.37,0.00016712,2]
[333806170,1722521450535,-500.0,0.00016712,2]
[333806171,1722521450545,-617.65,0.00016712,2]
[333806172,1722521450555,-500.0,0.00016712,2]
[333806173,1722521450565,-697.33,0.00016712,2]
[333806174,1722521450574,-578.84,0.00016712,2]
[333806175,1722521450583,-500.0,0.00016712,2]
[333806176,1722521450593,-2041.12,0.00016712,2]
[333806177,1722521450602,-315.87355649,0.00016712,2]
[333806178,1722521450612,-735.14,0.00016712,2]
[333806179,1722521450621,-1317.35,0.00016712,2]
[333806180,1722521450630,-500.0,0.00016712,2]
[333806181,1722521450640,-500.0,0.00016712,2]
[333806182,1722521450649,-351.5948328,0.00016712,2]
[333806183,1722521450658,-521.09,0.00016712,2]
[333806184,1722521450668,-500.0,0.00016712,2]
[333806185,1722521450677,-474.04808046,0.00016712,2]
[333806186,1722521450686,-500.0,0.00016712,2]
[333806187,1722521450696,-533.53,0.00016712,2]
[333806188,1722521450706,-500.0,0.00016712,2]
[333806189,1722521450716,-500.0,0.00016712,2]
[333806190,1722521450725,-500.0,0.00016712,2]
[333806191,1722521450734,-500.0,0.00016712,2]
[333806192,1722521450743,-1006.13,0.00016712,2]
[333806193,1722521450752,-1575.83,0.00016712,2]
[333806194,1722521450761,-500.0,0.00016712,2]
[333806195,1722521450771,-1410.0,0.00016741,2]
[333806196,1722521450783,-151.0,0.00016906,2]
[333806197,1722521450791,-800.0,0.00016919,2]
[333806198,1722521450800,-2738.47,0.00016986,2]
[333806199,1722521450811,-500.0,0.00016986,2]
[333806200,1722521450820,-500.0,0.00016986,2]
[333806201,1722521450829,-333.62,0.00016986,2]
[333806202,1722521450838,-500.0,0.00016986,2]
[333806203,1722521450849,-500.0,0.00016986,2]
[333806204,1722521450858,-510.69,0.00016986,2]
[333806205,1722521450867,-583.26,0.00016986,2]
[333806206,1722521450877,-500.0,0.00016986,2]
[333806207,1722521450886,-387.4,0.00016986,2]
[333806208,1722521450896,-500.0,0.00016986,2]
[333806209,1722521450905,-2317.06,0.00016986,2]
[333806210,1722521450915,-1062.46,0.00016986,2]
[333806211,1722521450924,-1544.57,0.00016986,2]
[333806212,1722521450933,-500.0,0.00016986,2]
[333806213,1722521450942,-547.52,0.00016986,2]
[333806214,1722521450951,-500.0,0.00016986,2]
[333806215,1722521450960,-500.0,0.00016986,2]
[333806216,1722521450970,-500.0,0.00016986,2]
[333806217,1722521450979,-747.22,0.00016986,2]
[333806218,1722521450988,-2056.17,0.00016986,2]
[333806219,1722521450997,-500.0,0.00016986,2]
[333806220,1722521451006,-500.0,0.00016986,2]
[333806221,1722521451016,-542.37,0.00016986,2]
[333806222,1722521451026,-500.0,0.00016986,2]
[333806223,1722521451035,-617.65,0.00016986,2]
[333806224,1722521451044,-500.0,0.00016986,2]
[333806225,1722521451053,-697.33,0.00016986,2]
[333806226,1722521451062,-578.84,0.00016986,2]
[333806227,1722521451071,-500.0,0.00016986,2]
[333806228,1722521451080,-2041.12,0.00016986,2]
[333806229,1722521451090,-735.14,0.00016986,2]
[333806230,1722521451099,-1317.35,0.00016986,2]
[333806231,1722521451108,-500.0,0.00016986,2]
[333806232,1722521451117,-500.0,0.00016986,2]
[333806233,1722521451126,-521.09,0.00016986,2]
[333806234,1722521451135,-500.0,0.00016986,2]
[333806235,1722521451145,-500.0,0.00016986,2]
[333806236,1722521451155,-533.53,0.00016986,2]
[333806237,1722521451164,-500.0,0.00016986,2]
[333806238,1722521451173,-500.0,0.00016986,2]
[333806239,1722521451183,-500.0,0.00016986,2]
[333806240,1722521451192,-500.0,0.00016986,2]
[333806241,1722521451201,-1006.13,0.00016986,2]
[333806242,1722521451210,-1575.83,0.00016986,2]
[333806243,1722521451219,-500.0,0.00016986,2]
[333806244,1722521451229,-1000.0,0.00017,17]
[333806245,1722521451238,-1500.0,0.00017,2]
[333806246,1722521451248,-1500.0,0.00017,2]
[333806247,1722521451257,-1500.0,0.00017,2]
[333806248,1722521451267,-1436.24,0.00017,2]
[333806249,1722521451276,-1020.71904051,0.00017,2]
[333806250,1722521451285,-154.68290005,0.00017,2]
[333806251,1722521451295,-1000.0,0.00017,2]
[333806252,1722521451304,-957.55931159,0.00017019,2]
[333806253,1722521451313,-154.69833824,0.00017019,2]
[333806254,1722521451323,-620.0075838,0.00017131,2]
[333806255,1722521451332,-2738.47,0.0001726,2]
[333806256,1722521451341,-351.38656067,0.0001726,2]
[333806257,1722521451351,-500.0,0.0001726,2]
[333806258,1722521451360,-333.62,0.0001726,2]
[333806259,1722521451369,-500.0,0.0001726,2]
[333806260,1722521451378,-500.0,0.0001726,2]
[333806261,1722521451388,-510.69,0.0001726,2]
[333806262,1722521451398,-583.26,0.0001726,2]
[333806263,1722521451407,-500.0,0.0001726,2]
[333806264,1722521451416,-387.4,0.0001726,2]
[333806265,1722521451426,-500.0,0.0001726,2]
[333806266,1722521451435,-2317.06,0.0001726,2]
[333806267,1722521451444,-1062.46,0.0001726,2]
[333806268,1722521451454,-1544.57,0.0001726,2]
[333806269,1722521451463,-235.97921649,0.0001726,2]
[333806270,1722521451472,-547.52,0.0001726,2]
[333806271,1722521451482,-500.0,0.0001726,2]
[333806272,1722521451491,-500.0,0.0001726,2]
[333806273,1722521451504,-500.0,0.0001726,2]
[333806274,1722521451513,-747.22,0.0001726,2]
[333806275,1722521451522,-2056.17,0.0001726,2]
[333806276,1722521451530,-500.0,0.0001726,2]
[333806277,1722521451542,-500.0,0.0001726,2]
[333806278,1722521451551,-542.37,0.0001726,2]
[333806279,1722521451560,-500.0,0.0001726,2]
[333806280,1722521451569,-617.65,0.0001726,2]
[333806281,1722521451579,-500.0,0.0001726,2]
[333806282,1722521451588,-697.33,0.0001726,2]
[333806283,1722521451598,-578.84,0.0001726,2]
[333806284,1722521451607,-500.0,0.0001726,2]
[333806285,1722521451616,-2041.12,0.0001726,2]
[333806286,1722521451625,-735.14,0.0001726,2]
[333806287,1722521451634,-1317.35,0.0001726,2]
[333806288,1722521451643,-500.0,0.0001726,2]
[333806289,1722521451652,-500.0,0.0001726,2]